bitfinex/quotes_ETHUSD_20250803
["timestamp","ask_amount","ask_price","bid_price","bid_amount"]
[1754189341179,0.1448,3449.0,3448.2,8.749641]
[1754189341381,0.03624343,3448.9,3448.3,4.414]
[1754189341720,0.1448,3448.6,3448.2,3.871841]
[1754189342015,0.1448,3448.3,3448.2,3.871841]
[1754189342319,0.6289,3448.3,3448.2,3.871841]
[1754189342685,1.0723,3448.3,3448.2,3.871841]
[1754189342898,1.0723,3448.3,3448.2,0.871841]
[1754189343622,1.0723,3448.3,3447.5,0.1448]
[1754189343784,0.9275,3448.2,3447.5,0.1448]
[1754189344132,0.9275,3448.2,3447.0,15.19746467]
[1754189344327,0.9275,3448.1,3447.0,10.32746467]
[1754189344625,0.1448,3447.3,3447.1,3.872072]
[1754189345025,0.1448,3447.3,3447.1,0.872072]
[1754189345387,0.1448,3447.3,3447.1,3.872072]
[1754189346023,0.1448,3447.3,3447.1,4.329072]
[1754189346336,0.1448,3447.3,3447.1,4.794872]
[1754189347240,0.1448,3447.3,3447.1,3.0]
[1754189347612,0.1448,3447.3,3447.2,0.4841]
[1754189350627,0.6289,3447.3,3446.5,14.5230984]
[1754189350831,0.6289,3447.3,3446.5,14.9800984]
[1754189350832,0.1448,3446.9,3446.5,14.9800984]
[1754189351032,0.1448,3446.9,3446.6,0.457]
[1754189351236,0.1448,3446.9,3446.6,1.5517]
[1754189351533,0.1448,3446.9,3446.6,4.0947]
[1754189351828,0.1448,3446.9,3446.6,3.6289]
[1754189352034,0.1448,3446.7,3446.6,0.6289]
[1754189352333,0.6289,3446.7,3446.6,0.6289]
[1754189352639,0.6289,3446.7,3446.6,3.6289]
[1754189353127,0.1448,3446.7,3446.6,0.6289]
[1754189353433,0.6289,3446.7,3446.6,3.6289]
[1754189354730,0.1448,3446.7,3446.6,3.6289]
[1754189355822,0.4434,3447.8,3446.6,4.5517]
[1754189356034,0.55,3447.9,3447.3,10.1110984]
[1754189356194,0.4841,3447.9,3447.7,10.1110984]
[1754189356596,0.6289,3447.8,3447.7,10.1110984]
[1754189356831,1.0723,3447.8,3446.9,0.9228]
[1754189357006,0.4434,3447.8,3447.5,0.872102]
[1754189357335,0.9275,3447.7,3447.5,0.872102]
[1754189357514,0.1448,3447.6,3447.5,0.872102]
[1754189357713,1.0723,3447.6,3447.5,0.872102]
[1754189358036,0.1448,3447.6,3447.5,3.872102]
[1754189360323,0.1448,3447.6,3447.5,4.09055113]
[1754189360529,0.4662,3448.3,3447.5,4.99565113]
[1754189360740,0.1448,3447.7,3447.5,4.09055113]
[1754189361048,0.1448,3447.7,3447.6,11.0161984]
[1754189361257,0.4662,3448.3,3447.6,14.0161984]
[1754189361425,0.1448,3447.8,3447.7,0.4582]
[1754189361756,0.1448,3447.8,3447.7,0.9051]
[1754189361983,0.1448,3447.8,3447.7,0.9131]
[1754189362131,0.1448,3447.8,3447.7,1.3713]
[1754189365047,0.1448,3447.8,3447.7,0.4662]
[1754189366072,1.0749,3447.8,3447.7,0.4662]
[1754189366578,0.611,3447.8,3447.7,0.4662]
[1754189367150,1.0749,3447.8,3447.7,0.4662]
[1754189367583,1.0749,3447.8,3447.6,3.0]
[1754189367906,0.9301,3447.7,3447.6,3.0]
[1754189368397,0.9301,3447.7,3447.6,0.872071]
[1754189369058,0.4662,3447.7,3447.6,0.872071]
[1754189370190,0.1448,3447.8,3447.6,0.872071]
[1754189370385,0.1448,3447.7,3447.6,1.777171]
[1754189370596,0.1448,3447.7,3447.6,0.872071]
[1754189371089,0.1448,3447.7,3447.6,1.777171]
[1754189371251,0.1448,3447.7,3447.6,0.872071]
[1754189371452,0.611,3447.7,3447.6,0.872071]
[1754189371887,1.0749,3447.7,3447.6,0.872071]
[1754189373680,1.0749,3447.7,3447.5,0.002]
[1754189373988,0.4662,3447.6,3447.5,0.874087]
[1754189375798,0.9301,3447.6,3447.5,0.002]
[1754189377380,1.4801,3447.6,3447.5,0.002]
[1754189377707,1.64259,3447.6,3447.5,0.002]
[1754189378804,1.6788471,3447.6,3447.5,0.002]
[1754189379504,1.64259,3447.6,3447.5,0.002]
[1754189381902,1.17869,3447.6,3447.5,0.002]
[1754189382317,1.64259,3447.6,3447.5,0.002]
[1754189383906,1.6788471,3447.6,3447.5,0.002]
[1754189384306,1.64259,3447.6,3447.5,0.002]
[1754189385494,6.05559,3447.6,3447.5,0.002]
[1754189388543,13.20559,3447.6,3447.5,0.002]
[1754189395156,16.20559,3447.6,3447.5,0.002]
[1754189395361,17.95059,3447.6,3447.5,0.002]
[1754189395750,18.22205757,3447.6,3447.5,0.002]
[1754189397643,14.99795757,3447.6,3447.5,0.002]
[1754189397857,14.72649,3447.6,3447.5,0.4947]
[1754189398169,14.72649,3447.6,3447.5,0.9646]
[1754189398371,15.27649,3447.6,3447.5,0.9646]
[1754189398741,14.72649,3447.6,3447.5,0.9646]
[1754189399243,12.28049,3447.6,3447.5,0.9646]
[1754189399982,13.34908237,3447.6,3447.5,0.9646]
[1754189401460,8.93108237,3447.6,3447.5,0.9646]
[1754189401763,13.34808237,3447.6,3447.5,0.9646]
[1754189402484,13.34808237,3447.6,3447.5,0.002]
[1754189402485,13.80108237,3447.6,3447.5,0.002]
[1754189407772,14.50257839,3447.6,3447.5,0.002]
[1754189409094,19.24757839,3447.6,3447.5,0.002]
[1754189410497,49.24757839,3447.6,3447.5,0.002]
[1754189411294,2.295,3447.2,3447.1,0.002]
[1754189411491,8.42195733,3447.2,3447.1,0.002]
[1754189411662,9.26829602,3447.2,3447.1,0.002]
[1754189414072,8.9964,3447.2,3447.1,0.002]
[1754189414271,9.26815631,3447.2,3447.1,0.002]
[1754189414478,10.48179665,3447.2,3447.1,0.002]
[1754189414875,17.62025002,3447.2,3447.1,0.002]
[1754189416898,19.06025002,3447.2,3447.1,0.002]
[1754189417065,53.86625002,3447.2,3447.1,0.002]
[1754189417263,23.86625002,3447.2,3447.1,0.002]
[1754189417467,53.86607092,3447.2,3447.1,0.002]
[1754189418068,52.42607092,3447.2,3447.1,0.002]
[1754189418698,16.59267092,3447.2,3447.1,0.002]
[1754189421612,18.33767092,3447.2,3447.1,0.002]
[1754189422414,16.04267092,3447.2,3447.1,0.9413]
[1754189422582,14.55745337,3447.2,3447.1,0.9413]
[1754189422787,11.55745337,3447.2,3447.1,0.9413]
[1754189423200,15.10745337,3447.2,3447.1,0.9413]
[1754189424406,12.10745337,3447.2,3447.1,0.9413]
[1754189429412,12.25225337,3447.2,3447.1,0.9413]
[1754189430699,4.5638,3447.2,3447.1,0.9413]
[1754189433639,5.1138,3447.2,3447.1,0.9413]
[1754189441035,5.62528,3447.2,3447.1,0.002]
[1754189441252,5.1138,3447.2,3447.1,0.002]
[1754189442043,5.1138,3447.2,3447.1,0.4808]
[1754189442250,5.1138,3447.2,3447.1,0.002]
[1754189442748,5.15006131,3447.2,3447.1,0.002]
[1754189443116,5.1138,3447.2,3447.1,0.002]
[1754189446344,5.71499,3447.2,3447.1,0.002]
[1754189446710,6.18089,3447.2,3447.1,0.002]
[1754189448622,5.71499,3447.2,3447.1,0.002]
[1754189448826,6.61209,3447.2,3447.1,0.002]
[1754189449420,6.18089,3447.2,3447.1,0.002]
[1754189452951,5.71499,3447.2,3447.1,0.002]
[1754189453121,6.20449,3447.2,3447.1,0.002]
[1754189454117,5.71499,3447.2,3447.1,0.4746]
[1754189454324,5.71499,3447.2,3447.1,0.002]
[1754189454519,6.20449,3447.2,3447.1,0.002]
[1754189455320,5.71499,3447.2,3447.1,0.002]
[1754189456018,6.20449,3447.2,3447.1,0.002]
[1754189456451,13.34294337,3447.2,3447.1,0.002]
[1754189457163,12.85344337,3447.2,3447.1,0.002]
[1754189457472,13.81624337,3447.2,3447.1,0.002]
[1754189457670,14.08847001,3447.2,3447.1,0.002]
[1754189459567,17.08847001,3447.2,3447.1,0.002]
[1754189461238,16.61517001,3447.2,3447.1,0.002]
[1754189461465,17.08847001,3447.2,3447.1,0.002]
[1754189464769,24.06547001,3447.2,3447.1,0.002]
[1754189464947,25.81047001,3447.2,3447.1,0.002]
[1754189465141,0.55,3446.9,3446.7,0.002]
[1754189465341,16.79789087,3446.8,3446.7,0.002]
[1754189465577,16.76162535,3446.8,3446.7,0.002]
[1754189465755,17.72442535,3446.8,3446.7,0.002]
[1754189466161,19.46942535,3446.8,3446.7,0.002]
[1754189470152,18.99612535,3446.8,3446.7,0.002]
[1754189470384,19.46942535,3446.8,3446.7,0.002]
[1754189470848,19.19719871,3446.8,3446.7,0.002]
[1754189471088,19.46875774,3446.8,3446.7,0.002]
[1754189472456,49.46875774,3446.8,3446.7,0.002]
[1754189473804,49.46864301,3446.8,3446.7,0.002]
[1754189473980,9.42545337,3446.4,3446.3,0.002]
[1754189474175,47.11189767,3446.4,3446.3,0.002]
[1754189474380,48.21949767,3446.4,3446.3,0.002]
[1754189475924,41.0890443,3446.4,3446.3,0.002]
[1754189476683,44.14876303,3446.4,3446.3,0.002]
[1754189476884,47.0170101,3446.4,3446.3,0.002]
[1754189477404,17.0170101,3446.4,3446.3,0.002]
[1754189477804,17.01694603,3446.4,3446.3,0.002]
[1754189478524,4.805,3446.2,3445.6,0.002]
[1754189478682,0.55,3445.7,3445.6,0.002]
[1754189479020,8.00227709,3445.7,3445.6,0.002]
[1754189479194,7.966,3445.7,3445.6,0.002]
[1754189479391,7.966,3445.7,3445.6,0.9087]
[1754189483821,15.09645337,3445.7,3445.6,0.002]
[1754189484009,15.89305337,3445.7,3445.6,0.002]
[1754189484382,15.89305337,3445.7,3445.6,0.4819]
[1754189484577,15.89305337,3445.7,3445.6,0.002]
[1754189485087,16.38825337,3445.7,3445.6,0.002]
[1754189485517,15.89305337,3445.7,3445.6,0.002]
[1754189486904,11.47705337,3445.7,3445.6,0.9209]
[1754189487096,11.54645337,3445.7,3445.6,0.9209]
[1754189487899,12.09645337,3445.7,3445.6,0.9209]
[1754189488640,12.24125337,3445.7,3445.6,0.9209]
[1754189493516,7.27525337,3445.7,3445.6,0.9209]
[1754189493813,11.69125337,3445.7,3445.6,11.0319984]
[1754189494921,11.69125337,3445.7,3445.6,0.9209]
[1754189499791,0.1448,3445.7,3445.6,0.9209]
[1754189500071,0.001,3446.0,3445.6,0.9209]
[1754189500224,0.001,3446.0,3445.9,10.1110984]
[1754189500557,4.416,3446.2,3445.9,10.1110984]
[1754189500732,0.1448,3446.2,3446.0,0.9189]
[1754189500928,0.1448,3446.2,3446.1,0.9189]
[1754189501383,0.1448,3446.2,3446.1,1.79128]
[1754189507868,0.55,3447.1,3446.1,1.79128]
[1754189508048,4.965,3447.0,3446.9,10.1110984]
[1754189508248,4.965,3447.0,3446.9,11.0299984]
[1754189509672,4.965,3447.0,3446.7,1.791148]
[1754189509868,4.965,3447.0,3446.7,1.334948]
[1754189510075,4.965,3447.0,3446.8,0.4562]
[1754189512581,4.965,3447.0,3446.7,1.334948]
[1754189512877,4.965,3447.0,3446.7,1.791148]
[1754189514073,0.55,3447.0,3446.9,10.1110984]
[1754189514274,4.964,3447.0,3446.9,10.1110984]
[1754189514943,4.964,3447.0,3446.7,0.872348]
[1754189515468,4.964,3447.0,3446.7,1.791148]
[1754189516456,4.964,3447.0,3446.7,1.334948]
[1754189516668,4.964,3447.0,3446.8,0.4562]
[1754189518887,4.964,3447.0,3446.9,11.0298984]
[1754189518888,4.415,3447.0,3446.9,11.0298984]
[1754189519089,4.965,3447.0,3446.9,11.0298984]
[1754189519615,4.965,3447.0,3446.9,10.5672984]
[1754189521087,4.415,3447.0,3446.9,11.0298984]
[1754189524101,4.415,3447.0,3446.9,10.5672984]
[1754189526704,4.415,3447.0,3446.9,11.0298984]
[1754189531191,4.415,3447.0,3446.7,10.1110984]
[1754189531356,4.415,3447.0,3446.8,0.9188]
[1754189534076,4.415,3447.0,3446.8,0.4562]
[1754189534279,4.415,3447.0,3446.8,0.9188]
[1754189534880,4.415,3447.0,3446.8,0.4562]
[1754189535190,4.8662,3447.0,3446.7,10.1110984]
[1754189535385,4.8662,3447.0,3446.7,10.5672984]
[1754189538499,4.8662,3447.0,3446.7,11.0298984]
[1754189543702,4.415,3447.0,3446.7,11.0298984]
[1754189545303,4.8996,3447.0,3446.7,11.0298984]
[1754189545502,4.415,3447.0,3446.7,11.0298984]
[1754189545704,4.415,3447.0,3446.8,0.9294]
[1754189547076,4.415,3447.0,3446.8,0.4801]
[1754189547586,4.8996,3447.0,3446.7,10.1110984]
[1754189547905,4.8996,3447.0,3446.7,10.5911984]
[1754189548307,4.8996,3447.0,3446.8,0.9294]
[1754189548308,4.415,3447.0,3446.8,0.9294]
[1754189548619,4.415,3447.0,3446.8,0.4493]
[1754189548822,4.415,3447.0,3446.9,0.4801]
[1754189549035,0.001,3447.0,3446.7,10.1110984]
[1754189549252,0.001,3447.4,3446.8,3.9294]
[1754189549394,0.001,3447.4,3447.3,10.1110984]
[1754189549593,4.413,3447.4,3447.3,10.1110984]
[1754189550039,4.413,3447.4,3447.3,11.0404984]
[1754189550239,0.001,3447.4,3447.3,11.0404984]
[1754189550406,4.413,3447.4,3447.3,11.0404984]
[1754189552298,4.413,3447.4,3447.3,11.9126224]
[1754189558513,4.413,3447.4,3447.3,0.872124]
[1754189559109,4.413,3447.4,3447.3,1.801524]
[1754189561145,0.001,3447.5,3447.3,4.801524]
[1754189561327,0.4846,3448.8,3447.9,10.1110984]
[1754189561531,4.411,3448.7,3448.5,10.1110984]
[1754189562141,4.8956,3448.7,3448.5,10.1110984]
[1754189562354,0.4846,3448.6,3448.2,1.352012]
[1754189562521,0.9353,3448.6,3448.2,0.871912]
[1754189562847,4.81152503,3448.7,3448.2,0.871912]
[1754189562848,0.9353,3448.5,3448.2,0.871912]
[1754189563043,4.411,3448.4,3448.2,0.871912]
[1754189563340,4.8956,3448.4,3448.2,0.871912]
[1754189563712,4.8617,3448.4,3448.2,0.871912]
[1754189563916,4.8617,3448.4,3447.5,10.1110984]
[1754189563917,0.55,3448.2,3447.5,10.1110984]
[1754189564147,5.3453,3448.1,3447.5,10.1110984]
[1754189564355,0.1448,3447.6,3447.5,13.1110984]
[1754189564536,0.1448,3447.6,3447.5,13.9831724]
[1754189564947,0.1448,3447.6,3447.5,14.9125724]
[1754189566855,0.1448,3447.6,3447.5,14.4632724]
[1754189567455,0.1448,3447.6,3447.5,13.9831724]
[1754189569157,0.6294,3447.6,3447.5,13.1110984]
[1754189569519,0.1448,3447.6,3447.5,13.1110984]
[1754189569752,0.1448,3447.6,3447.5,14.0473984]
[1754189569958,0.1448,3447.6,3447.5,14.9194494]
[1754189570558,0.1448,3447.6,3447.5,13.9831494]
[1754189571039,0.1448,3447.6,3447.4,10.1110984]
[1754189571241,0.482,3447.5,3447.4,13.1110984]
[1754189571444,0.1448,3447.5,3447.4,13.1110984]
[1754189573152,0.1448,3447.5,3447.4,14.0473984]
[1754189574250,0.1448,3447.5,3447.4,13.5734984]
[1754189574561,0.1448,3447.5,3447.4,13.1110984]
[1754189576265,0.1448,3447.5,3447.4,10.1110984]
[1754189580369,0.1448,3447.5,3447.4,11.0473984]
[1754189582859,0.1448,3447.5,3447.4,10.1110984]
[1754189583948,0.1448,3447.5,3447.0,0.874109]
[1754189584148,0.482,3447.4,3447.1,10.1110984]
[1754189584674,0.1448,3447.2,3447.1,11.0473984]
[1754189585173,0.1448,3447.2,3447.1,10.1110984]
[1754189585375,0.1448,3447.2,3447.1,11.0473984]
[1754189585874,5.2839,3447.7,3447.1,11.0473984]
[1754189585875,4.41,3447.7,3447.1,11.0473984]
[1754189586076,0.1448,3447.3,3447.2,0.9363]
[1754189586288,4.41,3447.7,3447.3,0.9363]
[1754189586488,0.1448,3447.4,3447.3,0.9363]
[1754189586689,0.1448,3447.4,3447.2,4.41]
[1754189586897,0.1448,3447.4,3447.2,4.8730515]
[1754189587391,0.1448,3447.4,3447.3,11.0473984]
[1754189589581,0.1448,3447.4,3447.3,14.0473984]
[1754189592098,4.5548,3447.7,3447.4,3.0]
[1754189592411,0.1448,3447.7,3447.5,0.9363]
[1754189592593,0.1448,3447.7,3447.6,4.41]
[1754189592791,0.001,3448.1,3448.0,10.1110984]
[1754189592998,4.41,3448.7,3448.0,10.1110984]
[1754189593165,0.1448,3448.4,3448.1,5.3463]
[1754189593358,0.1448,3448.4,3448.1,4.41]
[1754189593561,0.1448,3448.4,3448.2,0.9363]
[1754189593766,0.1448,3448.4,3448.2,3.9363]
[1754189594077,0.1448,3448.4,3448.2,4.41]
[1754189594078,0.6268,3448.4,3448.2,4.41]
[1754189594407,0.6268,3448.4,3448.3,3.0]
[1754189594791,1.17377,3448.4,3448.2,10.1110984]
[1754189594990,0.9149,3448.3,3448.2,10.1110984]
[1754189595193,0.69177,3448.4,3448.2,10.1110984]
[1754189595389,1.17377,3448.4,3448.2,10.1110984]
[1754189596773,0.69177,3448.4,3447.7,0.871935]
[1754189596980,0.9149,3448.3,3448.1,10.1110984]
[1754189597175,0.628187,3448.2,3448.1,10.1110984]
[1754189597501,1.205887,3448.2,3447.7,10.1110984]
[1754189597696,0.9149,3448.1,3447.7,10.1110984]
[1754189597915,0.1448,3447.8,3447.7,10.1110984]
[1754189600225,0.1448,3447.8,3447.4,0.628187]
[1754189600401,0.1448,3447.8,3447.7,10.1110984]
[1754189600715,0.4738,3448.1,3447.7,10.1110984]
[1754189600913,0.54697,3448.4,3447.7,10.1110984]
[1754189600914,0.1448,3447.8,3447.7,10.1110984]
[1754189602695,0.6425,3447.8,3447.7,10.1110984]
[1754189603320,1.1163,3447.8,3447.7,10.1110984]
[1754189603516,1.1163,3447.8,3447.4,3.0]
[1754189603726,0.1448,3447.5,3447.4,3.0]
[1754189605491,0.1448,3447.5,3447.4,3.904]
[1754189607409,0.1448,3447.7,3447.4,3.904]
[1754189607603,0.1448,3447.7,3447.6,10.1110984]
[1754189608107,0.1448,3447.7,3447.6,11.0150984]
[1754189608923,7.13145337,3448.6,3447.6,11.0150984]
[1754189609123,7.13145337,3448.6,3448.2,10.1110984]
[1754189609429,1.70684534,3448.5,3448.2,10.1110984]
[1754189609631,0.1448,3448.3,3448.2,10.1110984]
[1754189609932,0.1448,3448.3,3448.2,11.0150984]
[1754189612344,0.1448,3448.3,3448.2,17.5200984]
[1754189612630,1.1163,3448.3,3448.2,3.0]
[1754189612997,1.1163,3448.3,3448.0,4.409]
[1754189613242,0.1448,3448.1,3448.0,4.409]
[1754189613443,0.1448,3448.1,3447.9,7.409]
[1754189614632,0.1448,3448.1,3447.9,3.0]
[1754189614833,0.1448,3448.1,3448.0,10.5637984]
[1754189615330,0.1448,3448.1,3448.0,10.1110984]
[1754189621140,0.1448,3448.1,3448.0,11.0150984]
[1754189627061,0.1448,3448.1,3448.0,10.5637984]
[1754189628166,0.142581,3448.1,3448.0,10.1110984]
[1754189630366,0.142581,3448.1,3448.0,11.0495984]
[1754189630524,0.142581,3448.1,3448.0,10.5845984]
[1754189631278,0.142581,3448.1,3448.0,10.1110984]
[1754189633837,0.142581,3448.1,3448.0,10.5845984]
[1754189634038,0.142581,3448.1,3448.0,11.0495984]
[1754189635853,0.142581,3448.1,3448.0,10.1110984]
[1754189636068,0.142581,3448.1,3448.0,11.0495984]
[1754189640181,0.142581,3448.1,3448.0,11.5317984]
[1754189640384,0.142581,3448.1,3448.0,11.0667984]
[1754189640546,0.142581,3448.1,3448.0,10.1110984]
[1754189640751,0.142581,3448.1,3448.0,10.5818984]
[1754189640951,0.142581,3448.1,3448.0,11.5203984]
[1754189641447,0.142581,3448.1,3448.0,11.0468984]
[1754189641650,0.142581,3448.1,3448.0,11.5203984]
[1754189641859,0.142581,3448.1,3448.0,10.5818984]
[1754189642062,0.001,3448.6,3448.0,18.9283984]
[1754189642260,0.1458,3448.6,3448.5,13.1110984]
[1754189642691,0.1458,3448.6,3448.5,13.5932984]
[1754189643286,0.1458,3448.6,3448.5,14.0667984]
[1754189643498,0.1458,3448.6,3448.5,14.5317984]
[1754189644884,0.1458,3448.6,3448.5,13.5932984]
[1754189645288,0.001,3448.6,3448.5,13.5932984]
[1754189645469,0.001,3448.6,3448.5,14.5317984]
[1754189648801,0.1458,3448.7,3448.5,14.5317984]
[1754189648972,0.001,3449.0,3448.6,0.9385]
[1754189649172,0.001,3449.0,3448.9,10.1110984]
[1754189649688,0.001,3449.0,3448.9,10.5845984]
[1754189649891,0.1458,3449.0,3448.9,10.5845984]
[1754189650094,0.1458,3449.0,3448.9,10.1110984]
[1754189651199,1.0988,3449.0,3448.7,10.1110984]
[1754189651559,0.1448,3448.8,3448.5,3.871846]
[1754189651760,0.1448,3448.8,3448.7,10.1110984]
[1754189652484,0.627,3448.8,3448.7,10.1110984]
[1754189655288,0.1448,3448.8,3448.7,10.1110984]
[1754189655491,0.1448,3448.8,3448.7,11.0495984]
[1754189655865,0.1448,3448.8,3448.7,10.1110984]
[1754189662304,0.1448,3448.8,3448.7,10.5675984]
[1754189662485,0.1448,3448.8,3448.7,10.1110984]
[1754189665877,0.1448,3448.8,3448.7,11.0375984]
[1754189666916,0.001,3449.0,3448.7,11.0375984]
[1754189667103,0.001,3449.0,3448.8,0.9265]
[1754189667104,0.1448,3448.9,3448.8,0.9265]
[1754189667299,0.1448,3448.9,3448.7,10.9828324]
[1754189667512,0.1448,3448.9,3448.8,0.4565]
[1754189668187,0.1448,3448.9,3448.7,11.9093324]
[1754189668598,0.1448,3448.9,3448.8,0.4565]
[1754189668904,0.1448,3448.9,3448.8,0.9265]
[1754189670513,0.1458,3448.9,3448.8,0.9265]
[1754189674894,0.001,3448.9,3448.8,1.1451122]
[1754189676019,0.001,3448.9,3448.8,5.5511122]
[1754189676426,0.001,3448.9,3448.8,6.4228082]
[1754189680231,0.0868,3449.0,3448.8,6.4228082]
[1754189680433,0.0868,3449.0,3448.8,5.4963082]
[1754189680633,0.0868,3449.0,3448.9,0.9265]
[1754189680850,4.54509429,3449.4,3448.9,0.9265]
[1754189680851,0.13909429,3449.4,3448.9,3.9265]
[1754189680998,0.13909429,3449.4,3449.3,10.1110984]
[1754189681201,0.28389429,3449.4,3449.3,10.1110984]
[1754189681495,0.28389429,3449.4,3449.3,11.9092444]
[1754189681929,0.28389429,3449.4,3449.3,10.9827444]
[1754189682132,0.28389429,3449.4,3449.3,11.9092444]
[1754189682825,0.13909429,3449.4,3449.3,11.9092444]
[1754189683021,0.13909429,3449.4,3449.3,15.437907]
[1754189687238,0.004,3449.8,3449.3,15.437907]
[1754189687438,0.004,3449.8,3449.7,10.1110984]
[1754189687961,0.004,3449.8,3449.7,11.0375984]
[1754189688246,0.004,3449.8,3449.7,11.4887984]
[1754189688804,0.004,3449.8,3449.7,12.03862922]
[1754189689542,0.004,3449.8,3449.7,0.4512]
[1754189689733,0.6446,3449.8,3449.7,0.4512]
[1754189691354,1.1192,3449.8,3449.6,4.404]
[1754189691559,0.004,3449.8,3449.6,5.0486]
[1754189691720,0.004,3449.8,3449.6,0.6446]
[1754189691721,0.1448,3449.7,3449.6,0.6446]
[1754189691917,0.1448,3449.7,3449.6,1.1287]
[1754189692117,0.1448,3449.7,3449.6,1.5722]
[1754189692328,0.1448,3449.7,3449.6,1.1287]
[1754189692574,0.1448,3449.7,3449.6,0.6446]
[1754189692756,0.6406,3449.7,3449.6,0.6446]
[1754189693653,0.1448,3449.7,3449.6,0.6446]
[1754189694060,0.6406,3449.7,3449.6,0.6446]
[1754189695225,0.1448,3449.7,3449.6,0.6446]
[1754189697960,0.1448,3449.7,3449.6,1.1287]
[1754189698451,0.1448,3449.7,3449.6,1.5722]
[1754189700372,0.1448,3449.7,3449.6,1.1287]
[1754189701182,0.1448,3449.7,3449.6,0.6446]
[1754189701576,0.1448,3449.7,3449.6,1.5722]
[1754189703113,0.1448,3449.7,3449.6,5.9762]
[1754189703392,0.1448,3449.7,3449.6,5.0486]
[1754189703563,0.1448,3449.7,3449.6,5.9762]
[1754189705249,0.1448,3449.7,3449.6,5.0486]
[1754189706180,0.1448,3449.7,3449.6,0.6446]
[1754189711481,0.6406,3449.7,3449.6,0.6446]
[1754189712257,0.1448,3449.7,3449.6,0.6446]
[1754189713765,0.1448,3449.7,3449.6,1.1287]
[1754189714560,0.1448,3449.7,3449.6,0.6446]
[1754189715703,0.1448,3449.7,3449.6,1.1287]
[1754189717102,0.1448,3449.7,3449.6,0.6446]
[1754189717281,0.6406,3449.7,3449.6,0.6446]
[1754189718270,0.1448,3449.7,3449.6,0.6446]
[1754189720370,0.1448,3449.7,3449.6,1.114]
[1754189720597,0.1448,3449.7,3449.6,1.5722]
[1754189723778,0.005,3449.8,3449.6,1.5722]
[1754189723979,0.005,3449.8,3449.7,11.0386984]
[1754189724410,0.005,3449.8,3449.7,18.5864984]
[1754189724613,0.005,3449.8,3449.7,14.1834984]
[1754189724915,0.005,3449.8,3449.7,18.5864984]
[1754189725485,0.005,3449.8,3449.7,14.0386984]
[1754189725686,0.005,3449.8,3449.7,18.4416984]
[1754189725885,0.005,3449.8,3449.7,14.0386984]
[1754189726217,0.005,3449.8,3449.7,18.4416984]
[1754189728016,0.005,3449.8,3449.7,18.5874984]
[1754189728317,0.005,3449.8,3449.7,14.1844984]
[1754189728818,0.005,3449.8,3449.7,18.5874984]
[1754189734194,0.005,3449.8,3449.7,18.5864984]
[1754189735009,0.4928,3449.8,3449.7,14.6588984]
[1754189735216,0.4928,3449.8,3449.7,10.2568984]
[1754189735720,0.6376,3449.8,3449.7,10.2568984]
[1754189736742,0.1498,3449.8,3449.7,10.2568984]
[1754189737722,0.1498,3449.8,3449.7,11.1844984]
[1754189738443,0.1498,3449.8,3449.7,14.1844984]
[1754189738444,0.005,3449.8,3449.7,14.1844984]
[1754189738644,0.11,3450.0,3449.8,3.0]
[1754189738818,0.11,3450.0,3449.9,4.402]
[1754189739143,0.11,3450.0,3449.9,5.4744]
[1754189739910,0.11,3450.0,3449.9,8.4744]
[1754189742446,0.11,3450.0,3449.9,8.590578]
[1754189744325,0.11,3450.0,3449.9,3.116178]
[1754189744550,0.5978,3450.0,3449.9,3.116178]
[1754189745447,1.028,3450.0,3449.9,3.116178]
[1754189746245,1.028,3450.0,3449.9,0.116178]
[1754189746546,0.5978,3450.0,3449.9,0.116178]
[1754189750557,0.11,3450.0,3449.9,0.116178]
[1754189750858,0.11,3450.0,3449.9,8.406278]
[1754189752673,0.11,3450.0,3449.9,4.004278]
[1754189752955,0.11,3450.0,3449.9,8.406278]
[1754189754330,0.11,3450.0,3449.9,8.551078]
[1754189757462,0.111,3450.0,3449.9,8.551078]
[1754189763646,0.111,3450.0,3449.9,4.149078]
[1754189764039,0.111,3450.0,3449.9,8.550078]
[1754189768888,0.111,3450.0,3449.9,4.149078]
[1754189769058,0.111,3450.0,3449.9,7.661978]
[1754189769258,0.5813,3450.0,3449.9,7.661978]
[1754189769479,0.111,3450.0,3449.9,7.661978]
[1754189770082,0.111,3450.0,3449.9,8.113878]
[1754189770262,0.111,3450.0,3449.9,8.550078]
[1754189770871,0.111,3450.0,3449.9,3.260978]
[1754189771064,0.111,3450.0,3449.9,8.550078]
[1754189771994,0.111,3450.0,3449.9,4.149078]
[1754189772293,0.111,3450.0,3449.9,8.550078]
[1754189776666,0.111,3450.0,3449.9,8.549078]
[1754189777599,0.111,3450.0,3449.9,4.149078]
[1754189777808,0.111,3450.0,3449.9,8.549078]
[1754189778204,0.111,3450.0,3449.9,7.660978]
[1754189778712,0.111,3450.0,3449.9,8.549078]
[1754189779582,0.111,3450.0,3449.9,4.149078]
[1754189779909,0.111,3450.0,3449.9,7.660978]
[1754189781006,0.111,3450.0,3449.9,8.117578]
[1754189781783,0.111,3450.0,3449.9,8.575278]
[1754189782811,0.111,3450.0,3449.9,8.117578]
[1754189783411,0.111,3450.0,3449.9,8.575278]
[1754189784982,0.111,3450.0,3449.9,7.660978]
[1754189785808,0.111,3450.0,3449.9,8.117578]
[1754189786412,0.111,3450.0,3449.9,8.075278]